bitfinex/quotes_BTCUSD_20240927
["timestamp","ask_amount","ask_price","bid_price","bid_amount"]
[1727419322755,0.53653,65580.0,65574.0,0.152499]
[1727419322942,0.54453,65580.0,65574.0,0.152499]
[1727419323203,0.54253,65580.0,65575.0,0.152496]
[1727419323637,0.55053,65580.0,65575.0,0.152496]
[1727419323846,0.54253,65580.0,65575.0,0.151996]
[1727419324061,0.53653,65580.0,65575.0,0.151996]
[1727419324277,0.54453,65580.0,65575.0,0.151996]
[1727419324493,0.55053,65580.0,65576.0,0.152494]
[1727419325590,0.54253,65580.0,65573.0,0.1525]
[1727419325803,0.54253,65580.0,65570.0,0.0009889]
[1727419325804,0.54453,65580.0,65575.0,0.152496]
[1727419326004,0.54253,65580.0,65573.0,0.152501]
[1727419326231,0.54253,65580.0,65572.0,0.1]
[1727419326449,0.55053,65580.0,65576.0,0.152494]
[1727419326660,0.53653,65580.0,65575.0,0.152494]
[1727419326881,0.54253,65580.0,65574.0,0.152498]
[1727419327095,0.55053,65580.0,65572.0,0.101656]
[1727419327367,0.53653,65580.0,65576.0,0.152494]
[1727419327575,0.54253,65580.0,65576.0,0.152494]
[1727419327800,0.54253,65580.0,65575.0,0.152496]
[1727419328033,0.54253,65580.0,65572.0,0.101656]
[1727419328267,0.54253,65580.0,65576.0,0.152494]
[1727419328483,0.54253,65580.0,65574.0,0.152498]
[1727419328701,0.55053,65580.0,65575.0,0.152496]
[1727419328925,0.55053,65580.0,65572.0,0.101656]
[1727419328926,0.14161626,65576.0,65572.0,0.001656]
[1727419329183,0.002,65573.0,65572.0,0.001656]
[1727419329421,0.154501,65573.0,65572.0,0.001656]
[1727419329639,0.611831,65573.0,65572.0,0.001656]
[1727419330271,0.45733,65573.0,65572.0,0.001656]
[1727419330528,0.609831,65573.0,65572.0,0.001656]
[1727419330750,0.69414563,65573.0,65572.0,0.001656]
[1727419331395,0.611831,65573.0,65572.0,0.001656]
[1727419331859,0.623831,65573.0,65572.0,0.001656]
[1727419332766,0.633831,65573.0,65572.0,0.001656]
[1727419332991,0.843031,65573.0,65572.0,0.001656]
[1727419333643,0.831031,65573.0,65572.0,0.001656]
[1727419333862,0.95118583,65573.0,65572.0,0.001656]
[1727419334295,0.96518583,65573.0,65572.0,0.001656]
[1727419334960,0.97918583,65573.0,65572.0,0.001656]
[1727419335404,0.96518583,65573.0,65572.0,0.001656]
[1727419335824,0.95118583,65573.0,65572.0,0.001656]
[1727419336273,0.97918583,65573.0,65572.0,0.001656]
[1727419342223,0.849031,65573.0,65572.0,0.001656]
[1727419343229,0.84566698,65573.0,65572.0,0.001656]
[1727419344421,0.95546784,65573.0,65572.0,0.001656]
[1727419345584,0.97846784,65573.0,65572.0,0.001656]
[1727419361615,1.02316382,65573.0,65572.0,0.001656]
[1727419363157,0.97846784,65573.0,65572.0,0.001656]
[1727419363364,1.023204,65573.0,65572.0,0.001656]
[1727419364378,1.024032,65573.0,65572.0,0.001656]
[1727419365264,0.175532,65560.0,65559.0,0.0026406]
[1727419365530,0.154552,65551.0,65547.0,0.22875443]
[1727419365725,0.154552,65551.0,65538.0,0.001656]
[1727419365726,0.002,65546.0,65538.0,0.001656]
[1727419365946,0.75014624,65546.0,65539.0,0.001654]
[1727419366879,0.29619426,65540.0,65539.0,0.001654]
[1727419367100,0.75016024,65540.0,65539.0,0.001654]
[1727419367319,0.90526487,65540.0,65539.0,0.001654]
[1727419369110,0.91926487,65540.0,65539.0,0.001654]
[1727419369911,0.93326487,65540.0,65539.0,0.001654]
[1727419374927,0.95626487,65540.0,65539.0,0.001654]
[1727419375155,1.06990508,65540.0,65539.0,0.001654]
[1727419376681,1.27660508,65540.0,65539.0,0.001654]
[1727419387774,1.14720508,65540.0,65539.0,0.001654]
[1727419394369,1.09875109,65540.0,65539.0,0.001654]
[1727419397574,1.22965109,65540.0,65539.0,0.001654]
[1727419398501,1.27420508,65540.0,65539.0,0.001654]
[1727419398717,1.29812943,65540.0,65539.0,0.001654]
[1727419399188,1.30407841,65540.0,65539.0,0.001654]
[1727419399851,1.2801543,65540.0,65539.0,0.001654]
[1727419401129,1.3801543,65540.0,65539.0,0.001654]
[1727419402713,1.40407885,65540.0,65539.0,0.001654]
[1727419404819,0.152613,65525.0,65524.0,0.08978431]
[1727419405059,0.152613,65525.0,65508.0,0.28043764]
[1727419405060,0.69974125,65525.0,65516.0,0.91558323]
[1727419405268,0.69974125,65525.0,65524.0,0.000994]
[1727419405469,0.69974125,65525.0,65508.0,0.05156803]
[1727419405676,0.69974125,65525.0,65509.0,0.01697716]
[1727419405886,0.69974125,65525.0,65508.0,0.05156803]
[1727419406091,0.70874125,65525.0,65509.0,0.01697454]
[1727419406310,0.152615,65524.0,65520.0,0.1307]
[1727419406494,0.60658098,65524.0,65520.0,0.1307]
[1727419407824,0.61258098,65524.0,65520.0,0.1307]
[1727419408066,0.59258098,65524.0,65520.0,0.1307]
[1727419408282,0.60058098,65524.0,65520.0,0.1307]
[1727419408451,0.59458098,65524.0,65520.0,0.1307]
[1727419408789,0.58658098,65524.0,65520.0,0.1307]
[1727419408992,0.60058098,65524.0,65520.0,0.1307]
[1727419409854,0.70574325,65524.0,65520.0,0.1307]
[1727419414757,0.61258098,65524.0,65520.0,0.1307]
[1727419414973,0.61258098,65524.0,65521.0,0.04558396]
[1727419414974,0.70574325,65524.0,65521.0,0.04558396]
[1727419415398,0.70574325,65524.0,65521.0,0.04580335]
[1727419416533,0.70574325,65524.0,65520.0,0.17650335]
[1727419416747,0.70574325,65524.0,65521.0,0.04580335]
[1727419416957,0.70574325,65524.0,65520.0,0.17650335]
[1727419418737,0.70574325,65524.0,65520.0,0.24520838]
[1727419418976,0.70574325,65524.0,65521.0,0.04580335]
[1727419419224,0.70574325,65524.0,65520.0,0.17650335]
[1727419419462,0.70574325,65524.0,65521.0,0.04285308]
[1727419419630,0.09316227,65522.0,65521.0,0.04285308]
[1727419419858,0.54712825,65522.0,65520.0,0.19940503]
[1727419420665,0.54712825,65522.0,65520.0,0.1307]
[1727419420851,0.54712825,65522.0,65520.0,0.19940482]
[1727419421275,0.55912825,65522.0,65520.0,0.35202782]
[1727419421484,0.47596598,65522.0,65520.0,0.35202782]
[1727419421702,0.46396598,65522.0,65520.0,0.35202782]
[1727419421922,0.47596598,65522.0,65520.0,0.283323]
[1727419422143,0.47596598,65522.0,65520.0,0.35202782]
[1727419422765,0.45396598,65522.0,65520.0,0.35202782]
[1727419422969,0.46596598,65522.0,65520.0,0.35202782]
[1727419423599,0.45396598,65522.0,65520.0,0.35202782]
[1727419423802,0.46596598,65522.0,65520.0,0.35202782]
[1727419424009,0.46596598,65522.0,65520.0,0.283323]
[1727419424262,0.47996598,65522.0,65520.0,0.35202782]
[1727419424472,0.47996598,65522.0,65520.0,0.284151]
[1727419425571,0.47996598,65522.0,65520.0,0.35285582]
[1727419425794,0.47996598,65522.0,65521.0,0.06870482]
[1727419426008,0.47996598,65522.0,65521.0,0.22132682]
[1727419426848,0.46796598,65522.0,65521.0,0.22132682]
[1727419427071,0.45396598,65522.0,65521.0,0.22132682]
[1727419427298,0.46596598,65522.0,65521.0,0.22132682]
[1727419427535,0.0776,65514.0,65506.0,0.001656]
[1727419427791,0.54712825,65513.0,65506.0,0.001656]
[1727419428028,0.09316227,65509.0,65506.0,0.001656]
[1727419428241,0.45396598,65508.0,65506.0,0.001656]
[1727419428677,0.152655,65507.0,65506.0,0.001656]
[1727419428924,0.45396598,65507.0,65506.0,0.001656]
[1727419429614,0.60662098,65507.0,65506.0,0.001656]
[1727419430026,0.62062098,65507.0,65506.0,0.001656]
[1727419431422,0.60662098,65507.0,65506.0,0.001656]
[1727419432330,0.62062098,65507.0,65506.0,0.001656]
[1727419432558,0.63462098,65507.0,65506.0,0.001656]
[1727419434124,0.63462098,65507.0,65480.0,0.061188]
[1727419434125,0.22898491,65492.0,65480.0,0.061188]
[1727419434365,0.09316227,65483.0,65470.0,0.00305445]
[1727419434640,0.69983925,65483.0,65470.0,0.00595829]
[1727419434937,0.69983925,65483.0,65469.0,0.152743]
[1727419435910,0.69983925,65483.0,65466.0,0.305499]
[1727419435911,0.69983925,65483.0,65468.0,0.152745]
[1727419436151,0.71383925,65483.0,65468.0,0.152745]
[1727419436392,0.71383925,65483.0,65467.0,0.1]
[1727419436393,0.76285575,65483.0,65467.0,0.252747]
[1727419436604,0.76285575,65483.0,65468.0,0.152745]
[1727419436820,0.76285575,65483.0,65467.0,0.1]
[1727419437031,0.76285575,65483.0,65469.0,0.152742]
[1727419437276,0.77685575,65483.0,65469.0,0.152742]
[1727419437744,0.77685575,65483.0,65482.0,0.013]
[1727419440404,0.48196598,65483.0,65482.0,0.013]
[1727419440592,0.48196598,65483.0,65482.0,0.0934]
[1727419440878,0.48196598,65483.0,65482.0,0.246113]
[1727419441359,0.46796598,65483.0,65482.0,0.246113]
[1727419441591,0.48196598,65483.0,65482.0,0.246113]
[1727419441833,0.46796598,65483.0,65482.0,0.246113]
[1727419442346,0.48196598,65483.0,65482.0,0.013]
[1727419442580,0.62067698,65483.0,65482.0,0.013]
[1727419442801,0.63367698,65483.0,65482.0,0.013]
[1727419443264,0.48096598,65483.0,65482.0,0.013]
[1727419443503,0.175732,65474.0,65473.0,0.000828]
[1727419443687,0.75102852,65474.0,65473.0,0.000828]
[1727419444804,0.72802852,65474.0,65473.0,0.000828]
[1727419445023,0.74202852,65474.0,65473.0,0.000828]
[1727419446124,0.74402852,65474.0,65473.0,0.000828]
[1727419446569,0.87719375,65474.0,65473.0,0.000828]
[1727419447020,0.63469798,65474.0,65473.0,0.000828]
[1727419447516,0.634053,65461.0,65457.0,0.000828]
[1727419447748,0.152769,65458.0,65457.0,0.000828]
[1727419447985,0.60673498,65458.0,65457.0,0.000828]
[1727419448237,0.60873498,65458.0,65457.0,0.000828]
[1727419448471,0.91029206,65458.0,65457.0,0.000828]
[1727419448672,0.93424431,65458.0,65457.0,0.000828]
[1727419449346,0.96224431,65458.0,65457.0,0.000828]
[1727419449779,0.94824431,65458.0,65457.0,0.000828]
[1727419451067,0.93424431,65458.0,65457.0,0.000828]
[1727419451282,0.96224431,65458.0,65457.0,0.000828]
[1727419451713,1.04824431,65458.0,65457.0,0.000828]
[1727419451931,1.06224431,65458.0,65457.0,0.000828]
[1727419452143,0.29498777,65441.0,65439.0,0.22915632]
[1727419452368,0.72132628,65441.0,65439.0,0.12998432]
[1727419452602,0.152828,65433.0,65432.0,0.22915632]
[1727419452834,0.152856,65421.0,65418.0,0.22915632]
[1727419453065,0.45396598,65421.0,65418.0,0.22915632]
[1727419453293,0.45396598,65421.0,65416.0,0.000828]
[1727419453520,0.45396598,65421.0,65416.0,0.153694]
[1727419453950,0.45396598,65421.0,65417.0,0.152864]
[1727419454165,0.45396598,65421.0,65416.0,0.000828]
[1727419454808,0.45396598,65421.0,65416.0,0.153695]
[1727419454809,0.46796598,65421.0,65416.0,0.153695]
[1727419455021,0.60682198,65421.0,65416.0,0.000828]
[1727419455459,0.46796598,65421.0,65416.0,0.000828]
[1727419455679,0.48196598,65421.0,65418.0,0.152861]
[1727419456146,0.45396598,65421.0,65416.0,0.153695]
[1727419456358,0.45396598,65421.0,65417.0,0.152864]
[1727419456537,0.45396598,65421.0,65416.0,0.153695]
[1727419456772,0.45396598,65421.0,65417.0,0.152864]
[1727419456973,0.45396598,65421.0,65418.0,0.152862]
[1727419457400,0.45396598,65421.0,65418.0,0.152861]
[1727419457609,0.48196598,65421.0,65418.0,0.152861]
[1727419457820,0.48196598,65421.0,65416.0,0.153695]
[1727419457821,0.46796598,65421.0,65416.0,0.153695]
[1727419458060,0.45396598,65421.0,65419.0,0.152859]
[1727419458291,0.45396598,65421.0,65420.0,0.152958]
[1727419458292,0.46413688,65421.0,65420.0,0.152958]
[1727419458505,0.47813688,65421.0,65420.0,0.152958]
[1727419458934,0.47813688,65421.0,65420.0,0.40824594]
[1727419458935,0.45013688,65421.0,65420.0,0.40824594]
[1727419459157,0.45013688,65421.0,65420.0,0.45344446]
[1727419459158,0.46413688,65421.0,65420.0,0.45344446]
[1727419459373,0.46413688,65421.0,65420.0,0.40824594]
[1727419459374,0.47813688,65421.0,65420.0,0.40824594]
[1727419459583,0.47813688,65421.0,65420.0,0.61624372]
[1727419459795,0.47813688,65421.0,65420.0,0.54844594]
[1727419460034,0.47813688,65421.0,65420.0,0.71974299]
[1727419460472,0.32953688,65421.0,65420.0,0.71962573]
[1727419460708,0.32953688,65421.0,65420.0,0.62934594]
[1727419460926,0.18093688,65421.0,65420.0,0.65234594]
[1727419461161,0.22915632,65438.0,65437.0,0.152818]
[1727419461825,0.22915632,65456.0,65448.0,0.152793]
[1727419462255,0.22915632,65456.0,65455.0,0.152776]
[1727419462914,0.152766,65460.0,65452.0,0.305563]
[1727419463157,0.45832,65459.0,65452.0,0.305563]
[1727419463614,0.45832,65459.0,65454.0,0.305554]
[1727419463820,0.45832,65459.0,65457.0,0.15277]
[1727419464122,0.45832,65459.0,65452.0,0.305563]
[1727419464349,0.45832,65459.0,65458.0,0.152769]
[1727419465262,0.46032,65459.0,65458.0,0.152769]
[1727419465749,0.45832,65459.0,65458.0,0.152769]
[1727419465973,0.47232,65459.0,65458.0,0.152769]
[1727419466181,0.45832,65459.0,65458.0,0.152769]
[1727419466646,0.47132,65459.0,65458.0,0.152769]
[1727419467292,0.48532,65459.0,65458.0,0.153769]
[1727419467717,0.47132,65459.0,65458.0,0.152769]
[1727419467955,0.48132,65459.0,65458.0,0.153769]
[1727419469019,0.48132,65459.0,65458.0,0.19896368]
[1727419469503,0.48132,65459.0,65458.0,0.153769]
[1727419469713,0.48132,65459.0,65458.0,0.19896368]
[1727419470372,0.48132,65459.0,65458.0,0.153769]
[1727419470589,0.48132,65459.0,65458.0,0.22156103]
[1727419471023,0.48132,65459.0,65458.0,0.24415837]
[1727419471250,0.48132,65459.0,65458.0,0.26675571]
[1727419471685,0.48132,65459.0,65458.0,0.153769]
[1727419472115,0.48132,65459.0,65458.0,0.42230665]
[1727419472537,0.48132,65459.0,65458.0,0.40905694]
[1727419472780,0.48132,65459.0,65458.0,0.43205694]
[1727419473222,0.48132,65459.0,65458.0,0.43802838]
[1727419474197,0.472974,65459.0,65458.0,0.43702838]
[1727419474430,0.476974,65459.0,65458.0,0.43702838]
[1727419474896,0.472974,65459.0,65458.0,0.43702838]
[1727419475158,0.459974,65459.0,65458.0,0.43702838]
[1727419475472,0.460974,65459.0,65458.0,0.44902838]
[1727419475733,0.466974,65459.0,65458.0,0.43702838]
[1727419475995,0.459974,65459.0,65458.0,0.43702838]
[1727419476244,0.461974,65459.0,65458.0,0.44902838]
[1727419476499,0.460974,65459.0,65458.0,0.44602838]
[1727419477415,0.459974,65459.0,65458.0,0.43702838]
[1727419477673,0.460974,65459.0,65458.0,0.45102838]
[1727419478137,0.448174,65459.0,65458.0,0.43902838]
[1727419478366,0.447174,65459.0,65458.0,0.44802838]
[1727419478606,0.449174,65459.0,65458.0,0.45002838]
[1727419478820,0.449174,65459.0,65458.0,0.51123638]
[1727419480017,0.449174,65459.0,65458.0,0.45002838]
[1727419480236,0.449174,65459.0,65458.0,0.42702838]
[1727419480874,0.448174,65459.0,65458.0,0.41602838]
[1727419481311,0.448174,65459.0,65458.0,0.55232957]
[1727419481521,0.448174,65459.0,65458.0,0.42502838]
[1727419481942,0.449174,65459.0,65458.0,0.42702838]
[1727419483305,0.449174,65459.0,65458.0,0.43465232]
[1727419483482,0.449174,65459.0,65458.0,0.32105694]
[1727419483685,0.449174,65459.0,65458.0,0.38921299]
[1727419483906,0.448174,65459.0,65458.0,0.37821299]
[1727419484349,0.449174,65459.0,65458.0,0.38421299]
[1727419484552,0.449174,65459.0,65458.0,0.31405694]
[1727419484553,0.448174,65459.0,65458.0,0.31405694]
[1727419484760,0.447174,65459.0,65458.0,0.30805694]
[1727419484954,0.447174,65459.0,65458.0,0.31005694]
[1727419485172,0.447174,65459.0,65458.0,0.31105694]
[1727419485596,0.447174,65459.0,65458.0,0.31205694]
[1727419489174,0.447174,65459.0,65458.0,0.45423571]
[1727419489381,0.447174,65459.0,65458.0,0.49969696]
[1727419489590,0.447174,65459.0,65458.0,0.45423571]
[1727419489805,0.447174,65459.0,65458.0,0.31205694]
[1727419492485,0.447174,65459.0,65458.0,0.156769]
[1727419499065,0.447174,65459.0,65458.0,0.48835694]
[1727419499349,0.449174,65459.0,65458.0,0.53384494]
[1727419499545,0.454174,65459.0,65458.0,0.53384494]
[1727419500007,0.454174,65459.0,65458.0,0.48835694]
[1727419500266,0.454174,65459.0,65458.0,0.53386626]
[1727419500526,0.454174,65459.0,65458.0,0.54091002]
[1727419500725,0.449174,65459.0,65458.0,0.54091002]
[1727419500995,0.449174,65459.0,65458.0,0.67748417]
[1727419501218,0.447174,65459.0,65458.0,0.54091002]
[1727419501443,0.447174,65459.0,65458.0,0.54391002]
[1727419501663,0.452174,65459.0,65458.0,0.54972136]
[1727419501900,0.447174,65459.0,65458.0,0.54972136]
[1727419502117,0.447174,65459.0,65458.0,0.54672136]
[1727419502330,0.447174,65459.0,65458.0,0.55972136]
[1727419502331,0.449174,65459.0,65458.0,0.55972136]
[1727419502753,0.449174,65459.0,65458.0,0.69647538]
[1727419503387,0.449174,65459.0,65458.0,0.55972136]
[1727419503822,0.449174,65459.0,65458.0,0.42769528]
[1727419504082,0.449174,65459.0,65458.0,0.164596]
[1727419504083,0.448174,65459.0,65458.0,0.164596]
[1727419504319,0.448174,65459.0,65458.0,0.22404228]
[1727419504539,0.447174,65459.0,65458.0,0.04650315]
[1727419504777,0.448174,65459.0,65458.0,0.05750315]
[1727419504996,0.449174,65459.0,65458.0,0.013827]
[1727419505206,0.447174,65459.0,65458.0,0.000827]
[1727419505418,0.455174,65459.0,65458.0,0.04750315]
[1727419505639,0.466174,65459.0,65458.0,0.04750315]
[1727419505850,0.455174,65459.0,65458.0,0.001827]
[1727419506057,0.447174,65459.0,65458.0,0.000827]
[1727419506272,0.455174,65459.0,65458.0,0.001827]
[1727419506487,0.455174,65459.0,65458.0,0.04755127]
[1727419506704,0.455174,65459.0,65458.0,0.001827]
[1727419506910,0.455174,65459.0,65458.0,0.04755127]
[1727419507174,0.466174,65459.0,65458.0,0.04755127]
[1727419507387,0.466174,65459.0,65458.0,0.001827]
[1727419507599,0.466174,65459.0,65458.0,0.154596]
[1727419507823,0.477174,65459.0,65458.0,0.29677477]
[1727419508252,0.469174,65459.0,65458.0,0.29577477]
[1727419508670,0.447174,65459.0,65458.0,0.58792981]
[1727419508843,0.458174,65459.0,65458.0,0.55106271]
[1727419509104,0.466174,65459.0,65458.0,0.55206271]
[1727419509770,0.458174,65459.0,65458.0,0.55106271]
[1727419511070,0.469174,65459.0,65458.0,0.13812078]
[1727419511287,0.618941,65459.0,65458.0,0.001827]
[1727419511736,0.837741,65459.0,65458.0,0.000827]
[1727419512200,0.823741,65459.0,65458.0,0.001827]
[1727419512681,0.290283,65452.0,65451.0,0.0457725]
[1727419512904,0.290283,65452.0,65449.0,0.04577048]
[1727419512905,0.152788,65450.0,65449.0,0.04577048]
[1727419513130,0.1375,65452.0,65447.0,0.04577048]
[1727419513343,0.1375,65452.0,65443.0,0.04577048]
[1727419513344,0.0783,65447.0,65443.0,0.04577048]
[1727419513561,0.1528,65445.0,65440.0,0.04577048]
[1727419513829,0.1528,65445.0,65439.0,0.04577048]
[1727419514063,0.1528,65445.0,65440.0,0.91682138]
[1727419514315,0.0783,65447.0,65438.0,0.152815]
[1727419514316,0.152803,65444.0,65438.0,0.152815]
[1727419514529,0.152809,65441.0,65435.0,0.29859148]
[1727419514935,0.1375,65443.0,65435.0,0.04574043]
[1727419515141,0.152811,65440.0,65435.0,0.04574043]
[1727419515352,0.1375,65443.0,65440.0,0.001]
[1727419515593,0.152809,65441.0,65440.0,0.001]
[1727419515822,0.152809,65441.0,65431.0,0.06861065]
[1727419515823,0.0783,65434.0,65427.0,0.04574043]
[1727419516090,0.1432,65433.0,65426.0,0.91682138]
[1727419516302,0.1432,65433.0,65421.0,0.04656743]
[1727419516303,0.152853,65422.0,65421.0,0.000827]
[1727419516518,0.375753,65422.0,65421.0,0.000827]
[1727419517185,0.821273,65422.0,65421.0,0.000827]
[1727419517404,0.66842,65422.0,65421.0,0.000827]
[1727419518059,0.68242,65422.0,65421.0,0.000827]
[1727419518268,0.835273,65422.0,65421.0,0.000827]
[1727419518480,1.07677093,65422.0,65421.0,0.000827]
[1727419518731,0.96267353,65422.0,65421.0,0.000827]
[1727419518940,0.94867353,65422.0,65421.0,0.000827]
[1727419519155,0.96467353,65422.0,65421.0,0.000827]
[1727419519393,0.152856,65421.0,65416.0,0.000828]
[1727419519615,0.72583495,65421.0,65416.0,0.000828]
[1727419520978,0.73983495,65421.0,65416.0,0.000828]
[1727419521689,0.86827855,65421.0,65416.0,0.000828]
[1727419522120,0.73983495,65421.0,65416.0,0.000828]
[1727419522542,0.75383495,65421.0,65416.0,0.000828]
[1727419523720,0.60097895,65421.0,65416.0,0.000828]
[1727419523928,0.152865,65417.0,65416.0,0.000828]
[1727419524146,0.28084969,65417.0,65416.0,0.000828]
[1727419524359,0.72636969,65417.0,65416.0,0.000828]
[1727419525215,0.45952,65417.0,65416.0,0.000828]
[1727419525861,0.47152,65417.0,65416.0,0.000828]
[1727419526082,0.624385,65417.0,65416.0,0.000828]
[1727419526775,0.47152,65417.0,65416.0,0.153695]
[1727419527259,0.47152,65417.0,65416.0,0.000828]
[1727419528953,0.47152,65417.0,65416.0,0.153695]
[1727419531134,0.47152,65417.0,65416.0,0.000828]
[1727419531372,0.770585,65417.0,65416.0,0.000828]
[1727419531580,0.744585,65417.0,65416.0,0.000828]
[1727419531795,0.76633242,65417.0,65416.0,0.000828]
[1727419532013,0.77833242,65417.0,65416.0,0.000828]
[1727419532225,0.61146742,65417.0,65416.0,0.000828]
[1727419532406,0.76633242,65417.0,65416.0,0.000828]
[1727419532902,0.96334602,65417.0,65416.0,0.000828]
[1727419533336,0.299086,65408.0,65407.0,0.23011142]
[1727419533768,0.299086,65408.0,65407.0,0.000829]
[1727419533988,0.744606,65408.0,65407.0,0.000829]
[1727419534206,0.87364241,65408.0,65407.0,0.000829]
[1727419534677,0.72075641,65408.0,65407.0,0.000829]
[1727419534898,0.87364241,65408.0,65407.0,0.000829]
[1727419535116,0.72075641,65408.0,65407.0,0.000829]
[1727419535333,0.73561702,65408.0,65407.0,0.000829]
[1727419535726,0.61558061,65408.0,65407.0,0.000829]
[1727419535933,0.61558061,65408.0,65407.0,0.153717]
[1727419536575,0.61372,65408.0,65407.0,0.153717]
[1727419536789,0.74275641,65408.0,65407.0,0.000829]
[1727419537016,0.90123411,65408.0,65407.0,0.000829]
[1727419537246,0.97913411,65408.0,65407.0,0.000829]
[1727419537458,0.98113411,65408.0,65407.0,0.000829]
[1727419538310,0.97213411,65408.0,65407.0,0.000829]
[1727419538535,1.09992412,65408.0,65407.0,0.000829]
[1727419538745,1.10092412,65408.0,65407.0,0.000829]
[1727419538988,1.33056151,65408.0,65407.0,0.000829]
[1727419539203,1.31656151,65408.0,65407.0,0.000829]
[1727419539407,1.31456151,65408.0,65407.0,0.000829]
[1727419539628,1.32856151,65408.0,65407.0,0.000829]
[1727419540033,1.32856151,65408.0,65395.0,0.152915]
[1727419540034,0.1462,65403.0,65396.0,0.22928242]
[1727419540281,0.15291,65398.0,65396.0,0.22928242]
[1727419540497,0.44552,65397.0,65392.0,0.000827]
[1727419540707,0.44746315,65397.0,65394.0,0.152919]
[1727419541357,0.44746315,65397.0,65392.0,0.15375]
[1727419541591,0.44746315,65397.0,65393.0,0.305842]
[1727419541592,0.00560811,65396.0,65393.0,0.305842]
[1727419541772,0.00560811,65396.0,65394.0,0.152917]
[1727419542003,0.44552,65395.0,65394.0,0.152917]
[1727419542429,0.45114108,65395.0,65394.0,0.152917]
[1727419542684,0.45307484,65395.0,65394.0,0.152917]
[1727419543315,0.45307484,65395.0,65392.0,0.153749]
[1727419543495,0.45307484,65395.0,65393.0,0.152921]
[1727419543707,0.45307484,65395.0,65392.0,0.000827]
[1727419544167,0.46707484,65395.0,65392.0,0.000827]
[1727419544389,0.45307484,65395.0,65392.0,0.000827]
[1727419544604,0.46707484,65395.0,65392.0,0.000827]
[1727419545049,0.45307484,65395.0,65392.0,0.000827]
[1727419545258,1.07035921,65393.0,65392.0,0.000827]
[1727419545491,0.598441,65393.0,65392.0,0.000827]
[1727419545694,0.73116771,65393.0,65392.0,0.000827]
[1727419547034,0.74516771,65393.0,65392.0,0.000827]
[1727419547262,0.73116771,65393.0,65392.0,0.000827]
[1727419547486,0.74516771,65393.0,65392.0,0.000827]
[1727419547936,0.75916771,65393.0,65392.0,0.000827]
[1727419548375,0.74516771,65393.0,65392.0,0.000827]
[1727419548588,0.73116771,65393.0,65392.0,0.000827]
[1727419548804,0.74516771,65393.0,65392.0,0.000827]
[1727419549022,0.46145681,65393.0,65392.0,0.000827]
[1727419549235,0.46145681,65393.0,65392.0,0.15375]
[1727419549667,0.44745681,65393.0,65392.0,0.15375]
[1727419550095,0.46145681,65393.0,65392.0,0.15375]
[1727419550340,0.44745681,65393.0,65392.0,0.15375]
[1727419550550,0.46145681,65393.0,65392.0,0.15375]
[1727419550731,0.46145681,65393.0,65392.0,0.000827]
[1727419551013,0.47545681,65393.0,65392.0,0.15375]
[1727419551477,0.47545681,65393.0,65392.0,0.19911728]
[1727419552410,0.46145681,65393.0,65392.0,0.04627667]
[1727419553418,0.44745681,65393.0,65392.0,0.000827]
[1727419553659,0.47545681,65393.0,65392.0,0.000827]
[1727419554140,0.47545681,65393.0,65392.0,0.15375]
[1727419554645,0.47545681,65393.0,65392.0,0.000827]
[1727419556292,0.47545681,65393.0,65392.0,0.09188434]
[1727419556497,0.48276389,65393.0,65392.0,0.000827]
[1727419556927,0.48276389,65393.0,65392.0,0.06919158]
[1727419557175,0.48276389,65393.0,65392.0,0.06919151]
[1727419557390,0.48276389,65393.0,65392.0,0.09197976]
[1727419557599,0.46876389,65393.0,65392.0,0.09197976]
[1727419558069,0.45476389,65393.0,65392.0,0.09197976]
[1727419558297,0.62168489,65393.0,65392.0,0.09197976]
[1727419558564,0.62168489,65393.0,65392.0,0.11476009]
[1727419558997,0.62168489,65393.0,65392.0,0.000827]
[1727419559214,0.62168489,65393.0,65392.0,0.09210924]
[1727419559423,0.62168489,65393.0,65392.0,0.11476009]
[1727419559844,0.63568489,65393.0,65392.0,0.11476009]
[1727419560330,0.48276389,65393.0,65392.0,0.11476009]
[1727419560570,0.48276389,65393.0,65392.0,0.29632102]
[1727419560810,0.48276389,65393.0,65392.0,0.000827]
[1727419561049,0.45476389,65393.0,65392.0,0.20178991]
[1727419561241,0.46876389,65393.0,65392.0,0.000827]
[1727419561538,0.48276389,65393.0,65392.0,0.000827]
[1727419561788,0.45476389,65393.0,65392.0,0.000827]
[1727419562026,0.45476389,65393.0,65392.0,0.15375]
[1727419562247,0.46276389,65393.0,65392.0,0.000827]
[1727419562727,0.45476389,65393.0,65392.0,0.15375]
[1727419563462,0.45291511,65393.0,65392.0,0.15375]
[1727419563705,0.46676389,65393.0,65392.0,0.15375]
[1727419563937,0.46476389,65393.0,65392.0,0.15375]
[1727419564172,0.47876389,65393.0,65392.0,0.15375]
[1727419564400,0.45476389,65393.0,65392.0,0.15375]
[1727419564912,0.46876389,65393.0,65392.0,0.25375]
[1727419565148,0.45976389,65393.0,65392.0,0.25375]
[1727419565390,0.46376389,65393.0,65392.0,0.25375]
[1727419565625,0.46876389,65393.0,65392.0,0.25375]
[1727419566287,0.46876389,65393.0,65392.0,0.42703512]
[1727419566794,0.45976389,65393.0,65392.0,0.42703512]
[1727419567031,0.46376389,65393.0,65392.0,0.42703512]
[1727419567271,0.45976389,65393.0,65392.0,0.4690144]
[1727419567537,0.45976389,65393.0,65392.0,0.31372646]
[1727419567768,0.45976389,65393.0,65392.0,0.25375]
[1727419567769,0.46576389,65393.0,65392.0,0.25375]
[1727419568000,0.46076389,65393.0,65392.0,0.27172352]
[1727419568263,0.46376389,65393.0,65392.0,0.25375]
[1727419568507,0.45776389,65393.0,65392.0,0.25375]
[1727419568987,0.46476389,65393.0,65392.0,0.25375]
[1727419569463,0.46476389,65393.0,65392.0,0.11516641]
[1727419569464,0.60456389,65393.0,65392.0,0.11516641]
[1727419569759,0.60456389,65393.0,65392.0,0.000827]
[1727419570242,0.74748489,65393.0,65392.0,0.000827]
[1727419570494,0.75648489,65393.0,65392.0,0.000827]
[1727419570727,0.76148489,65393.0,65392.0,0.000827]
[1727419570973,0.59956389,65393.0,65392.0,0.000827]
[1727419571266,0.76148489,65393.0,65392.0,0.000827]
[1727419571511,0.77548489,65393.0,65392.0,0.000827]